[Event "Najdorf Memorial-A 2022"]
[Site "Warsaw"]
[Date "2022.07.09"]
[Round "1.13"]
[White "Sowul, Bartosz"]
[Black "Starosciak, Szymon"]
[Result "0-1"]
[ECO "A12"]
[WhiteElo "2283"]
[BlackElo "1901"]
[Annotator "RC"]
[PlyCount "114"]
[EventDate "2022.07.09"]
[EventType "swiss"]
[EventCountry "POL"]
[SourceTitle "playchess.com"]
[Source "ChessBase"]
[SourceQuality "1"]
[TimeControl "40/5400+30:1800+30"]

1. Nf3 {[%emt 0:00:03]} Nf6 {[%emt 0:00:29]} 2. c4 {[%emt 0:00:18]} c6 {[%emt 0:00:42]} 3. g3 {[%emt 0:02:22]} d5 {[%emt 0:00:25]} 4. b3 {[%emt 0:00:04]} Bf5 {[%emt 0:01:26]} 5. Bg2 {[%emt 0:00:42]} e6 {[%emt 0:03:25]} 6. O-O {[%emt 0:02:56]} Bd6 {[%emt 0:04:55]} 7. Bb2 {[%emt 0:00:08]} O-O {[%emt 0:00:57]} 8. d3 {[%emt 0:02:47]} h6 {[%emt 0:04:48]} 9. Nbd2 {[%emt 0:07:02]} Qe7 {[%emt 0:05:18]} 10. Re1 {[%emt 0:18:43]} Bh7 {[%emt 0:10:07]} 11. e4 {[%emt 0:05:09]} Ba3 {[%emt 0:04:14]} 12. Qc1 {[%emt 0:07:11]} Bxb2 {[%emt 0:01:08]} 13. Qxb2 {[%emt 0:00:04]} Na6 {[%emt 0:03:28]} 14. Ne5 {[%emt 0:06:59]} Rfd8 {[%emt 0:06:37]} 15. Rad1 {[%emt 0:07:48]} dxe4 {[%emt 0:16:18]} 16. d4 {[%emt 0:06:07]} Rd6 {[%emt 0:09:07]} 17. Nxe4 Bxe4 {[%emt 0:00:37]} 18. Bxe4 {[%emt 0:04:59]} Nxe4 {[%emt 0:00:25]} 19. Rxe4 {[%emt 0:00:05]} Nc5 {[%emt 0:03:08]} 20. Rf4 {[%emt 0:15:34]} Rf8 {[%emt 0:02:28]} 21. Qa3 {[%emt 0:03:08]} Nd7 {[%emt 0:08:51]} 22. Nxd7 {[%emt 0:03:26]} Rxd7 {[%emt 0:00:14]} 23. Qxa7 {[%emt 0:00:24]} Qb4 {[%emt 0:02:01]} 24. Rf3 {[%emt 0:03:32]} Rfd8 {[%emt 0:00:08]} 25. Rfd3 {[%emt 0:02:00]} Kh8 {[%emt 0:05:20]} 26. a3 {[%emt 0:00:43]} Qf8 {[%emt 0:00:09]} 27. Qa5 {[%emt 0:00:58]} Ra8 {[%emt 0:01:54]} 28. Qb4 {[%emt 0:00:12]} Qxb4 {[%emt 0:00:23]} 29. axb4 {[%emt 0:00:04]} Ra6 {[%emt 0:01:09]} 30. Rc1 {[%emt 0:01:27]} Rb6 {[%emt 0:00:30]} 31. Ra1 {[%emt 0:00:32]} Rxb4 {[%emt 0:00:09]} 32. Ra8+ {[%emt 0:00:30]} Kh7 {[%emt 0:00:07]} 33. Ra4 {[%emt 0:00:31]} Rxa4 {[%emt 0:03:09]} 34. bxa4 {[%emt 0:00:05]} c5 {[%emt 0:01:33]} 35. d5 {[%emt 0:00:12]} exd5 {[%emt 0:00:18]} 36. cxd5 {[%emt 0:01:00]} Kg6 {[%emt 0:00:36]} 37. d6 b6 38. g4 {[%emt 0:01:14]} Kf6 {[%emt 0:01:12]} 39. a5 {[%emt 0:00:28]} bxa5 40. Rd5 {[%emt 0:00:00]} c4 {[%emt 0:00:00]} 41. Rxa5 {[%emt 0:04:56]} Rxd6 {[%emt 0:01:23]} 42. Rc5 {[%emt 0:00:08]} Rd4 {[%emt 0:05:20]} 43. f3 {[%emt 0:00:20]} Ke6 {[%emt 0:02:27]} 44. Kf2 {[%emt 0:00:06]} Kd6 {[%emt 0:02:37]} 45. Rc8 {[%emt 0:00:10]} Kd5 {[%emt 0:08:00]} 46. Ke2 {[%emt 0:00:53]} h5 {[%emt 0:04:04]} 47. gxh5 {[%emt 0:05:51]} Rh4 {[%emt 0:01:33]} 48. Ke3 {[%emt 0:00:08]} Rxh5 {[%emt 0:01:17]} 49. Rc7 {[%emt 0:01:16]} Re5+ {[%emt 0:00:35]} 50. Kd2 {[%emt 0:01:00]} Rf5 {[%emt 0:00:08]} 51. Ke3 {[%emt 0:06:18]} Rf6 {[%emt 0:01:25]} 52. f4 {[%emt 0:06:41]} g6 {[%emt 0:01:38]} 53. Rd7+ {[%emt 0:09:07]} Kc5 {[%emt 0:00:21]} 54. Rb7 {[%emt 0:00:32]} Re6+ {[%emt 0:03:47]} 55. Kd2 {[%emt 0:00:20]} f5 {[%emt 0:00:47]} 56. Kc3 {[%emt 0:00:44]} Re3+ {[%emt 0:00:05]} 57. Kd2 {[%emt 0:00:25]} Rh3 {[%emt 0:00:46]} 0-1

[Event "Najdorf Memorial-A 2022"]
[Site "Warsaw"]
[Date "2022.07.09"]
[Round "1.13"]
[White "Rozumek, Krzysztof"]
[Black "Liberadzki, Slawomir"]
[Result "1-0"]
[ECO "A48"]
[WhiteElo "1801"]
[BlackElo "2035"]
[Annotator "NA RC"]
[PlyCount "101"]
[EventDate "2022.07.09"]
[EventType "swiss"]
[EventCountry "POL"]
[SourceTitle "playchess.com"]
[Source "ChessBase"]
[SourceQuality "1"]
[TimeControl "40/5400+30:1800+30"]

1. h3 c5 2. c3 Nf6 3. d4 b6 4. Bf4 Bb7 5. e3 g6 6. Nf3 Bg7 7. Nbd2 O-O 8. Bc4 d6 9. O-O Nc6 10. Qe2 Re8 11. Bh2 e5 12. dxc5 e4 13. Bxd6 exf3 14. Nxf3 Ne4 15. Rfd1 Qf6 16. Bf4 g5 17. Bc7 Nxc5 18. Bb5 Rac8 19. Bh2 Red8 20. Qc2 a6 21. Bc4 Na5 22. Be5 Qg6 23. Qxg6 hxg6 24. Rxd8+ Rxd8 25. Bxg7 Bxf3 26. Bf6 Rd1+ 27. Rxd1 Bxd1 28. Bd5 Nab7 29. b4 Nd7 30. Be7 Nbc5 31. bxc5 Nxc5 32. Bxg5 Kg7 33. Bd8 b5 34. Be7 Na4 35. Bb4 Be2 36. Bb7 Kf6 37. Bxa6 Ke5 38. Bb7 Bc4 39. Bc6 Nb6 40. f4+ Ke6 41. e4 f5 42. exf5+ Kxf5 43. g3 Nd5 44. a4 bxa4 45. Bxa4 Ke4 46. Kf2 Kd3 47. Be8 Nxc3 48. Bxc3 Kxc3 49. Bxg6 Kd4 50. h4 Kd5 51. Bf7+ 1-0

[Event "Najdorf Memorial-A 2022"]
[Site "Warsaw"]
[Date "2022.07.09"]
[Round "1.14"]
[White "Goraj, Barbara"]
[Black "Szwaj, Justyna"]
[Result "1-0"]
[ECO "A09"]
[WhiteElo "2035"]
[BlackElo "1797"]
[Annotator "NA RC"]
[PlyCount "43"]
[EventDate "2022.07.09"]
[EventType "swiss"]
[EventCountry "POL"]
[SourceTitle "playchess.com"]
[Source "ChessBase"]
[SourceQuality "1"]
[TimeControl "40/5400+30:1800+30"]

1. Nf3 {[%emt 0:00:05]} d5 {[%emt 0:00:15]} 2. c4 {[%emt 0:00:09]} d4 {[%emt 0:02:02]} 3. b4 {[%emt 0:01:20]} Bg4 {[%emt 0:04:59]} 4. Qb3 {[%emt 0:01:27]} Nf6 {[%emt 0:08:12]} 5. Bb2 {[%emt 0:08:28]} Bxf3 {[%emt 0:15:18]} 6. Qxf3 {[%emt 0:04:37]} Nc6 {[%emt 0:01:27]} 7. b5 {[%emt 0:06:04]} Na5 {[%emt 0:11:40]} 8. e3 {[%emt 0:07:25]} d3 {[%emt 0:05:16]} 9. Bc3 {[%emt 0:02:22]} Nxc4 {[%emt 0:08:04]} 10. Qxb7 {[%emt 0:01:08]} Qd5 {[%emt 0:03:47]} 11. Qxd5 {[%emt 0:03:43]} Nxd5 {[%emt 0:00:04]} 12. Bxd3 {[%emt 0:00:15]} Nxc3 {[%emt 0:05:28]} 13. Nxc3 {[%emt 0:06:51]} Ne5 {[%emt 0:02:55]} 14. Be4 {[%emt 0:00:47]} O-O-O {[%emt 0:00:38]} 15. Ke2 {[%emt 0:04:50]} e6 {[%emt 0:00:14]} 16. d4 {[%emt 0:03:36]} Nc4 {[%emt 0:02:23]} 17. Bd3 {[%emt 0:08:18]} Bb4 {[%emt 0:02:33]} 18. Rhc1 {[%emt 0:03:04]} Nb6 {[%emt 0:02:25]} 19. a4 {[%emt 0:01:23]} Ba5 {[%emt 0:00:23]} 20. Ne4 {[%emt 0:01:20]} Rhe8 {[%emt 0:04:04]} 21. Nc5 {[%emt 0:04:57]} e5 {[%emt 0:02:24]} 22. Bf5+ {[%emt 0:00:42]} 1-0

[Event "Najdorf Memorial-A 2022"]
[Site "Warsaw"]
[Date "2022.07.09"]
[Round "1.14"]
[White "Lasota, Adam"]
[Black "Fiszer, Bartosz"]
[Result "0-1"]
[ECO "A45"]
[WhiteElo "1892"]
[BlackElo "2228"]
[Annotator "RC"]
[PlyCount "144"]
[EventDate "2022.07.09"]
[EventType "swiss"]
[EventCountry "POL"]
[SourceTitle "playchess.com"]
[Source "ChessBase"]
[SourceQuality "1"]
[TimeControl "40/5400+30:1800+30"]

1. d4 {[%emt 0:00:03]} Nf6 {[%emt 0:00:06]} 2. Bf4 {[%emt 0:00:05]} g6 {[%emt 0:00:15]} 3. e3 {[%emt 0:00:05]} Bg7 {[%emt 0:00:05]} 4. Be2 {[%emt 0:00:09]} d6 {[%emt 0:00:31]} 5. h3 {[%emt 0:00:09]} c5 {[%emt 0:00:12]} 6. c3 {[%emt 0:00:06]} O-O {[%emt 0:00:41]} 7. Nf3 {[%emt 0:00:13]} b6 {[%emt 0:04:57]} 8. O-O {[%emt 0:00:56]} Bb7 {[%emt 0:00:12]} 9. a4 {[%emt 0:04:22]} Nbd7 {[%emt 0:02:13]} 10. Nbd2 {[%emt 0:04:17]} Re8 {[%emt 0:00:43]} 11. Bh2 {[%emt 0:00:23]} Qc7 {[%emt 0:03:56]} 12. Re1 {[%emt 0:06:31]} Rad8 {[%emt 0:05:23]} 13. Qb1 {[%emt 0:12:58]} e5 {[%emt 0:12:50]} 14. Rc1 {[%emt 0:07:53]} Qb8 {[%emt 0:15:00]} 15. Qa2 {[%emt 0:11:22]} Qa8 {[%emt 0:03:23]} 16. Bf1 {[%emt 0:04:26]} Ne4 {[%emt 0:02:01]} 17. Nxe4 {[%emt 0:05:39]} Bxe4 {[%emt 0:00:08]} 18. Nd2 {[%emt 0:03:37]} Bd5 {[%emt 0:02:56]} 19. c4 {[%emt 0:03:48]} Bb7 {[%emt 0:00:46]} 20. d5 {[%emt 0:00:56]} a5 {[%emt 0:00:36]} 21. Ne4 {[%emt 0:02:21]} Qb8 {[%emt 0:00:37]} 22. Qb3 {[%emt 0:00:45]} h6 {[%emt 0:00:31]} 23. Nc3 {[%emt 0:01:09]} f5 {[%emt 0:00:23]} 24. Be2 {[%emt 0:02:13]} Ba6 {[%emt 0:01:37]} 25. f3 {[%emt 0:09:38]} Bf6 {[%emt 0:01:38]} 26. Qc2 {[%emt 0:00:31]} Bg5 {[%emt 0:00:46]} 27. Kf2 {[%emt 0:01:30]} Rf8 {[%emt 0:01:23]} 28. g4 {[%emt 0:02:20]} Rde8 {[%emt 0:01:38]} 29. gxf5 {[%emt 0:01:28]} gxf5 {[%emt 0:01:01]} 30. Rg1 {[%emt 0:01:11]} Kh8 {[%emt 0:00:44]} 31. Rg2 {[%emt 0:02:19]} Bh4+ {[%emt 0:02:36]} 32. Kg1 {[%emt 0:01:25]} Bg5 {[%emt 0:06:23]} 33. f4 {[%emt 0:01:33]} exf4 {[%emt 0:00:33]} 34. Bxf4 {[%emt 0:00:30]} Rxe3 {[%emt 0:02:41]} 35. Bxg5 {[%emt 0:02:16]} hxg5 {[%emt 0:00:17]} 36. Rxg5 {[%emt 0:00:29]} Rxh3 {[%emt 0:00:46]} 37. Kg2 {[%emt 0:01:10]} Qd8 {[%emt 0:00:26]} 38. Rxf5 {[%emt 0:01:55]} Qh4 {[%emt 0:01:00]} 39. Rh5+ {[%emt 0:02:33]} Qxh5 {[%emt 0:01:38]} 40. Bxh5 {[%emt 0:00:00]} Rxh5 {[%emt 0:00:00]} 41. Ne4 {[%emt 0:02:04]} Ne5 {[%emt 0:01:32]} 42. Ng3 {[%emt 0:01:21]} Rg8 {[%emt 0:01:14]} 43. Qe2 {[%emt 0:03:01]} Rh4 {[%emt 0:04:03]} 44. b3 {[%emt 0:02:11]} Bc8 {[%emt 0:00:18]} 45. Qf2 {[%emt 0:14:44]} Bh3+ {[%emt 0:05:24]} 46. Kg1 {[%emt 0:00:10]} Rxg3+ {[%emt 0:01:34]} 47. Qxg3 {[%emt 0:00:07]} Rg4 {[%emt 0:00:04]} 48. Qxg4 {[%emt 0:04:22]} Bxg4 {[%emt 0:00:09]} 49. Kf2 {[%emt 0:02:13]} Kg7 {[%emt 0:06:10]} 50. Ke3 {[%emt 0:00:34]} Bf5 {[%emt 0:00:20]} 51. Rg1+ {[%emt 0:01:14]} Bg6 {[%emt 0:00:28]} 52. Rg2 {[%emt 0:01:34]} Kf6 {[%emt 0:00:11]} 53. Kd2 {[%emt 0:00:59]} Nf3+ {[%emt 0:00:22]} 54. Kc3 {[%emt 0:01:07]} Nd4 {[%emt 0:00:55]} 55. Rh2 {[%emt 0:01:10]} Ke5 {[%emt 0:03:50]} 56. Rh8 {[%emt 0:02:15]} Bc2 {[%emt 0:01:06]} 57. Re8+ {[%emt 0:00:07]} Kf6 {[%emt 0:03:12]} 58. Rb8 {[%emt 0:00:11]} Bxb3 {[%emt 0:00:09]} 59. Rxb6 {[%emt 0:00:06]} Ke5 {[%emt 0:00:45]} 60. Ra6 {[%emt 0:00:42]} Bxa4 {[%emt 0:00:16]} 61. Rxa5 {[%emt 0:00:39]} Bd7 {[%emt 0:02:21]} 62. Ra7 {[%emt 0:00:29]} Bg4 {[%emt 0:00:34]} 63. Re7+ {[%emt 0:00:30]} Kf4 {[%emt 0:00:09]} 64. Re8 {[%emt 0:00:50]} Ne2+ {[%emt 0:00:27]} 65. Kd3 {[%emt 0:01:12]} Ng3 {[%emt 0:00:11]} 66. Rd8 {[%emt 0:00:49]} Bf5+ {[%emt 0:00:12]} 67. Kc3 {[%emt 0:00:28]} Ke3 {[%emt 0:00:09]} 68. Rh8 {[%emt 0:01:27]} Ne4+ {[%emt 0:00:08]} 69. Kb3 {[%emt 0:00:43]} Kd3 {[%emt 0:00:54]} 70. Rh5 {[%emt 0:01:21]} Nd2+ {[%emt 0:01:17]} 71. Ka2 {[%emt 0:01:09]} Be4 {[%emt 0:00:22]} 72. Rh6 {[%emt 0:00:38]} Nxc4 {[%emt 0:00:18]} 0-1

[Event "Najdorf Memorial-A 2022"]
[Site "Warsaw"]
[Date "2022.07.09"]
[Round "1.15"]
[White "Golecki, Jan"]
[Black "Wolski, Jaroslaw"]
[Result "1-0"]
[ECO "C77"]
[WhiteElo "2219"]
[BlackElo "1889"]
[Annotator "RC"]
[PlyCount "63"]
[EventDate "2022.07.09"]
[EventType "swiss"]
[EventCountry "POL"]
[SourceTitle "playchess.com"]
[Source "ChessBase"]
[SourceQuality "1"]
[TimeControl "40/5400+30:1800+30"]

1. e4 {[%emt 0:00:04]} e5 {[%emt 0:00:13]} 2. Nf3 {[%emt 0:00:06]} Nc6 {[%emt 0:00:07]} 3. Bb5 {[%emt 0:00:07]} a6 {[%emt 0:00:07]} 4. Ba4 {[%emt 0:00:04]} Nf6 {[%emt 0:00:10]} 5. d3 {[%emt 0:00:11]} d6 {[%emt 0:00:36]} 6. c3 {[%emt 0:00:16]} Be7 {[%emt 0:01:09]} 7. Nbd2 {[%emt 0:00:21]} b5 {[%emt 0:00:46]} 8. Bc2 {[%emt 0:00:08]} O-O {[%emt 0:00:11]} 9. O-O {[%emt 0:00:07]} h6 {[%emt 0:00:42]} 10. Re1 {[%emt 0:00:09]} Re8 {[%emt 0:00:38]} 11. Nf1 {[%emt 0:00:27]} Bf8 {[%emt 0:00:35]} 12. a4 {[%emt 0:00:54]} Bd7 {[%emt 0:01:18]} 13. Ng3 {[%emt 0:00:32]} g6 {[%emt 0:00:18]} 14. d4 {[%emt 0:00:28]} Bg7 {[%emt 0:01:53]} 15. h3 {[%emt 0:06:21]} Qc8 {[%emt 0:01:07]} 16. Be3 {[%emt 0:00:53]} exd4 {[%emt 0:02:57]} 17. cxd4 {[%emt 0:00:48]} Nb4 {[%emt 0:00:24]} 18. Bb1 {[%emt 0:06:08]} c5 {[%emt 0:00:13]} 19. axb5 {[%emt 0:03:16]} Bxb5 {[%emt 0:00:17]} 20. Qd2 {[%emt 0:00:49]} Kh7 {[%emt 0:00:50]} 21. Rc1 {[%emt 0:09:22]} Nd7 {[%emt 0:01:30]} 22. dxc5 {[%emt 0:02:26]} dxc5 {[%emt 0:00:14]} 23. Bxc5 {[%emt 0:00:11]} Nxc5 {[%emt 0:00:29]} 24. Qxb4 {[%emt 0:00:06]} Bf8 {[%emt 0:01:19]} 25. Qa3 {[%emt 0:07:00]} Qd7 {[%emt 0:02:35]} 26. Rxc5 {[%emt 0:01:12]} Qd1+ {[%emt 0:01:44]} 27. Kh2 {[%emt 0:00:05]} Rac8 {[%emt 0:01:54]} 28. b4 {[%emt 0:00:29]} Rxc5 {[%emt 0:01:34]} 29. bxc5 {[%emt 0:00:11]} Rc8 {[%emt 0:00:23]} 30. e5 {[%emt 0:00:28]} Qd7 {[%emt 0:05:38]} 31. Ne4 {[%emt 0:01:05]} Qb7 {[%emt 0:00:29]} 32. Nd6 {[%emt 0:00:55]} 1-0

[Event "Najdorf Memorial-A 2022"]
[Site "Warsaw"]
[Date "2022.07.09"]
[Round "1.15"]
[White "Skrzypczynski, Kacper"]
[Black "Zdybel, Przemyslaw"]
[Result "1/2-1/2"]
[ECO "A45"]
[WhiteElo "1793"]
[BlackElo "2026"]
[Annotator "NA RC"]
[PlyCount "70"]
[EventDate "2022.07.09"]
[EventType "swiss"]
[EventCountry "POL"]
[SourceTitle "playchess.com"]
[Source "ChessBase"]
[SourceQuality "1"]
[TimeControl "40/5400+30:1800+30"]

1. d4 {[%emt 0:00:03]} Nf6 2. Bg5 d5 {[%emt 0:00:18]} 3. e3 {[%emt 0:00:16]} c5 {[%emt 0:00:24]} 4. Nf3 {[%emt 0:00:46]} Nc6 {[%emt 0:00:23]} 5. c3 {[%emt 0:00:23]} Bf5 {[%emt 0:08:59]} 6. Nh4 {[%emt 0:07:46]} Bg6 {[%emt 0:08:22]} 7. Nxg6 {[%emt 0:00:17]} hxg6 {[%emt 0:00:06]} 8. Bxf6 {[%emt 0:06:55]} gxf6 {[%emt 0:00:14]} 9. dxc5 {[%emt 0:05:51]} e6 {[%emt 0:04:26]} 10. b4 {[%emt 0:16:49]} a5 {[%emt 0:04:39]} 11. Bb5 {[%emt 0:01:06]} f5 {[%emt 0:01:29]} 12. a3 {[%emt 0:03:29]} Bg7 {[%emt 0:12:26]} 13. Bxc6+ {[%emt 0:01:20]} bxc6 {[%emt 0:00:06]} 14. Ra2 {[%emt 0:00:15]} g5 {[%emt 0:01:56]} 15. Qe2 {[%emt 0:08:06]} g4 {[%emt 0:03:44]} 16. c4 {[%emt 0:03:54]} Qb8 {[%emt 0:02:46]} 17. b5 {[%emt 0:06:37]} Rxh2 {[%emt 0:06:18]} 18. Rxh2 {[%emt 0:02:52]} Qxh2 {[%emt 0:00:05]} 19. cxd5 {[%emt 0:02:12]} exd5 {[%emt 0:00:13]} 20. Qd3 {[%emt 0:11:39]} Qh1+ {[%emt 0:16:18]} 21. Ke2 {[%emt 0:00:45]} g3 {[%emt 0:03:18]} 22. Qxf5 {[%emt 0:04:51]} Qxg2 {[%emt 0:05:08]} 23. a4 {[%emt 0:01:32]} Qh2 {[%emt 0:02:55]} 24. Qf4 {[%emt 0:01:48]} Qh5+ {[%emt 0:01:00]} 25. Qf3 {[%emt 0:05:04]} Qg6 {[%emt 0:00:06]} 26. Qxg3 {[%emt 0:00:10]} Qxb1 {[%emt 0:00:05]} 27. Qxg7 {[%emt 0:00:57]} Qxa2+ {[%emt 0:01:23]} 28. Kf3 {[%emt 0:00:05]} O-O-O {[%emt 0:05:48]} 29. Qf6 {[%emt 0:01:35]} Rd7 {[%emt 0:05:42]} 30. Qxc6+ {[%emt 0:01:38]} Kd8 {[%emt 0:00:06]} 31. Qf6+ {[%emt 0:00:12]} Re7 {[%emt 0:01:00]} 32. Qd6+ {[%emt 0:00:28]} Ke8 {[%emt 0:02:54]} 33. Qb8+ {[%emt 0:00:07]} Kd7 {[%emt 0:00:03]} 34. Qd6+ {[%emt 0:00:07]} Ke8 {[%emt 0:00:04]} 35. Qb8+ {[%emt 0:00:04]} Kd7 {[%emt 0:00:04]} 1/2-1/2

[Event "Najdorf Memorial-A 2022"]
[Site "Warsaw"]
[Date "2022.07.09"]
[Round "1.16"]
[White "Gorkiewicz, Mateusz"]
[Black "Adamski, Adam"]
[Result "1/2-1/2"]
[ECO "B53"]
[WhiteElo "2023"]
[BlackElo "1784"]
[Annotator "NA RC"]
[PlyCount "88"]
[EventDate "2022.07.09"]
[EventType "swiss"]
[EventCountry "POL"]
[SourceTitle "playchess.com"]
[Source "ChessBase"]
[SourceQuality "1"]
[TimeControl "40/5400+30:1800+30"]

1. e4 {[%emt 0:00:04]} c5 {[%emt 0:00:06]} 2. Nf3 {[%emt 0:00:08]} d6 {[%emt 0:00:06]} 3. d4 {[%emt 0:00:10]} cxd4 {[%emt 0:00:08]} 4. Qxd4 {[%emt 0:01:02]} a6 {[%emt 0:00:51]} 5. c4 {[%emt 0:00:29]} Nc6 {[%emt 0:00:17]} 6. Qe3 {[%emt 0:00:15]} g6 {[%emt 0:03:06]} 7. Be2 {[%emt 0:00:38]} Bg7 {[%emt 0:00:37]} 8. O-O {[%emt 0:00:24]} Nf6 {[%emt 0:00:30]} 9. h3 {[%emt 0:00:23]} O-O {[%emt 0:00:27]} 10. Nc3 {[%emt 0:00:32]} Nd7 {[%emt 0:15:53]} 11. Rb1 {[%emt 0:01:53]} Qb6 {[%emt 0:02:30]} 12. Qxb6 {[%emt 0:09:01]} Nxb6 {[%emt 0:00:06]} 13. Nd5 {[%emt 0:05:32]} Nxd5 {[%emt 0:05:24]} 14. cxd5 {[%emt 0:10:46]} Nd4 {[%emt 0:08:35]} 15. Nxd4 {[%emt 0:00:39]} Bxd4 {[%emt 0:00:08]} 16. Bh6 {[%emt 0:03:59]} Rd8 {[%emt 0:07:49]} 17. Rfc1 {[%emt 0:04:21]} Bd7 {[%emt 0:09:07]} 18. Rc7 {[%emt 0:07:57]} Rab8 {[%emt 0:00:02]} 19. Be3 {[%emt 0:04:17]} Bxe3 {[%emt 0:01:08]} 20. fxe3 {[%emt 0:00:06]} Kf8 {[%emt 0:01:05]} 21. Kf2 {[%emt 0:22:53]} h5 {[%emt 0:04:04]} 22. Ke1 {[%emt 0:02:56]} Ke8 {[%emt 0:00:07]} 23. Kd2 {[%emt 0:00:24]} Rdc8 {[%emt 0:00:17]} 24. Rxc8+ {[%emt 0:01:35]} Rxc8 {[%emt 0:00:06]} 25. g4 {[%emt 0:00:51]} hxg4 {[%emt 0:03:16]} 26. hxg4 {[%emt 0:02:37]} g5 {[%emt 0:07:52]} 27. Rh1 {[%emt 0:03:30]} f6 {[%emt 0:01:17]} 28. Rh7 {[%emt 0:01:59]} Kf8 {[%emt 0:03:36]} 29. Bf3 {[%emt 0:07:42]} Ke8 {[%emt 0:00:53]} 30. b3 {[%emt 0:00:25]} Kd8 {[%emt 0:01:18]} 31. e5 {[%emt 0:05:22]} fxe5 {[%emt 0:01:51]} 32. Rg7 {[%emt 0:00:21]} Ke8 {[%emt 0:00:14]} 33. Rxg5 {[%emt 0:00:14]} Kf7 {[%emt 0:00:02]} 34. Be4 {[%emt 0:02:56]} Rh8 {[%emt 0:02:21]} 35. Rh5 {[%emt 0:01:02]} Rxh5 {[%emt 0:02:10]} 36. gxh5 {[%emt 0:00:05]} Kg7 {[%emt 0:00:06]} 37. Bf3 {[%emt 0:00:24]} Kh6 {[%emt 0:02:06]} 38. Kc3 {[%emt 0:00:16]} Be8 {[%emt 0:03:24]} 39. Bg4 {[%emt 0:00:17]} a5 {[%emt 0:02:20]} 40. a4 {[%emt 0:00:00]} Kg5 {[%emt 0:00:00]} 41. h6 {[%emt 0:13:58]} Kxh6 {[%emt 0:01:53]} 42. Kc4 {[%emt 0:00:30]} Kg5 {[%emt 0:03:34]} 43. Bc8 {[%emt 0:01:59]} b6 {[%emt 0:00:18]} 44. Bb7 {[%emt 0:02:18]} Kf5 {[%emt 0:03:48]} 1/2-1/2

[Event "Najdorf Memorial-A 2022"]
[Site "Warsaw"]
[Date "2022.07.09"]
[Round "1.16"]
[White "Lee, Hyuk"]
[Black "Markiewicz, Jerzy"]
[Result "1/2-1/2"]
[ECO "A45"]
[WhiteElo "1880"]
[BlackElo "2205"]
[Annotator "RC"]
[PlyCount "41"]
[EventDate "2022.07.09"]
[EventType "swiss"]
[EventCountry "POL"]
[SourceTitle "playchess.com"]
[Source "ChessBase"]
[SourceQuality "1"]
[TimeControl "40/5400+30:1800+30"]

1. d4 {[%emt 0:00:05]} Nf6 {[%emt 0:00:09]} 2. Bf4 {[%emt 0:00:12]} d5 {[%emt 0:00:36]} 3. e3 {[%emt 0:00:07]} c5 {[%emt 0:00:24]} 4. c3 {[%emt 0:00:10]} Nc6 {[%emt 0:00:08]} 5. Nd2 {[%emt 0:00:25]} e6 {[%emt 0:01:32]} 6. Ngf3 {[%emt 0:00:17]} Bd6 {[%emt 0:00:08]} 7. Bg3 {[%emt 0:00:26]} O-O {[%emt 0:00:17]} 8. Bd3 {[%emt 0:00:05]} b6 {[%emt 0:01:08]} 9. Qe2 {[%emt 0:00:38]} Bb7 {[%emt 0:00:14]} 10. Rd1 {[%emt 0:00:37]} Qe7 {[%emt 0:12:21]} 11. Ne5 {[%emt 0:05:34]} Bxe5 {[%emt 0:03:58]} 12. dxe5 {[%emt 0:00:09]} Nd7 {[%emt 0:00:04]} 13. f4 {[%emt 0:04:07]} f6 {[%emt 0:00:44]} 14. exf6 {[%emt 0:05:57]} Nxf6 {[%emt 0:01:12]} 15. e4 {[%emt 0:01:50]} dxe4 {[%emt 0:01:30]} 16. Nxe4 {[%emt 0:01:02]} Nxe4 {[%emt 0:01:43]} 17. Bxe4 {[%emt 0:04:46]} Rae8 {[%emt 0:00:58]} 18. O-O {[%emt 0:02:04]} Na5 {[%emt 0:00:34]} 19. Rde1 {[%emt 0:06:51]} Bxe4 {[%emt 0:00:20]} 20. Qxe4 {[%emt 0:00:06]} Qb7 {[%emt 0:00:34]} 21. Qxb7 {[%emt 0:04:14]} 1/2-1/2

[Event "Najdorf Memorial-A 2022"]
[Site "Warsaw"]
[Date "2022.07.09"]
[Round "1.17"]
[White "Padalka, Artem"]
[Black "Celinski, Kamil"]
[Result "1-0"]
[ECO "A05"]
[WhiteElo "2204"]
[BlackElo "1876"]
[Annotator "RC"]
[PlyCount "115"]
[EventDate "2022.07.09"]
[EventType "swiss"]
[EventCountry "POL"]
[SourceTitle "playchess.com"]
[Source "ChessBase"]
[SourceQuality "1"]
[TimeControl "40/5400+30:1800+30"]

1. Nf3 {[%emt 0:01:19]} Nf6 {[%emt 0:00:05]} 2. c4 {[%emt 0:00:36]} g6 {[%emt 0:01:18]} 3. g3 {[%emt 0:00:36]} Bg7 {[%emt 0:00:09]} 4. Bg2 {[%emt 0:00:02]} O-O {[%emt 0:00:52]} 5. O-O {[%emt 0:00:04]} c5 {[%emt 0:01:20]} 6. Nc3 {[%emt 0:01:13]} d5 {[%emt 0:00:39]} 7. d3 {[%emt 0:06:38]} Nc6 {[%emt 0:07:27]} 8. Bg5 {[%emt 0:06:57]} dxc4 {[%emt 0:11:37]} 9. dxc4 {[%emt 0:01:07]} Be6 {[%emt 0:03:07]} 10. Bxf6 {[%emt 0:13:55]} Bxf6 {[%emt 0:00:30]} 11. Nd5 {[%emt 0:00:40]} Bxb2 {[%emt 0:12:58]} 12. Rb1 {[%emt 0:01:30]} Bg7 {[%emt 0:04:43]} 13. Rxb7 {[%emt 0:03:18]} Bxd5 {[%emt 0:17:37]} 14. Qxd5 {[%emt 0:08:05]} Qxd5 {[%emt 0:01:50]} 15. cxd5 {[%emt 0:00:05]} Nb4 {[%emt 0:00:04]} 16. Nd2 {[%emt 0:22:43]} Rfd8 {[%emt 0:09:51]} 17. Nb3 {[%emt 0:15:58]} Nxd5 {[%emt 0:06:43]} 18. Nxc5 {[%emt 0:00:03]} e6 {[%emt 0:03:34]} 19. Ne4 {[%emt 0:01:01]} a5 {[%emt 0:06:17]} 20. Ng5 {[%emt 0:00:42]} Nc3 {[%emt 0:03:02]} 21. Rxf7 {[%emt 0:06:29]} Ra6 {[%emt 0:01:07]} 22. Bh3 {[%emt 0:01:57]} Rd5 {[%emt 0:03:33]} 23. f4 {[%emt 0:00:49]} h6 {[%emt 0:01:55]} 24. Rxg7+ {[%emt 0:02:34]} Kxg7 {[%emt 0:00:08]} 25. Nxe6+ {[%emt 0:00:04]} Kf6 {[%emt 0:00:34]} 26. Nc7 {[%emt 0:00:14]} Rad6 {[%emt 0:00:20]} 27. Nxd5+ {[%emt 0:01:12]} Rxd5 {[%emt 0:00:01]} 28. Kf2 {[%emt 0:02:18]} Rd2 {[%emt 0:00:31]} 29. Bg4 {[%emt 0:00:57]} Rxa2 {[%emt 0:00:27]} 30. Rc1 {[%emt 0:00:15]} Ra3 {[%emt 0:00:34]} 31. Bf3 {[%emt 0:00:11]} a4 {[%emt 0:00:48]} 32. Ke1 {[%emt 0:00:38]} Rb3 {[%emt 0:00:10]} 33. Kd2 {[%emt 0:00:36]} Nb1+ {[%emt 0:00:16]} 34. Kc2 {[%emt 0:00:08]} Na3+ {[%emt 0:01:49]} 35. Kd1 {[%emt 0:00:21]} Nb5 {[%emt 0:00:17]} 36. Rc6+ {[%emt 0:00:16]} Kg7 {[%emt 0:00:01]} 37. Kd2 {[%emt 0:01:36]} Rb2+ {[%emt 0:01:07]} 38. Kc1 {[%emt 0:00:50]} a3 {[%emt 0:00:51]} 39. Ra6 {[%emt 0:00:07]} Rb4 {[%emt 0:00:35]} 40. Bd5 {[%emt 0:00:00]} Nc3 {[%emt 0:00:00]} 41. Ra7+ {[%emt 0:08:26]} Kf8 {[%emt 0:01:12]} 42. e4 {[%emt 0:00:37]} Nxe4 {[%emt 0:04:16]} 43. Rxa3 {[%emt 0:02:13]} Rd4 {[%emt 0:01:18]} 44. Ba2 {[%emt 0:03:07]} Nd6 {[%emt 0:04:07]} 45. Ra7 {[%emt 0:03:33]} Nf5 {[%emt 0:01:50]} 46. Rf7+ {[%emt 0:04:34]} Ke8 {[%emt 0:00:09]} 47. Rf6 {[%emt 0:00:11]} Re4 {[%emt 0:02:56]} 48. Rxg6 {[%emt 0:01:00]} Re1+ {[%emt 0:00:10]} 49. Kd2 {[%emt 0:00:58]} Rh1 {[%emt 0:00:09]} 50. Re6+ {[%emt 0:06:30]} Kd7 {[%emt 0:00:01]} 51. Re2 {[%emt 0:00:07]} Nd4 {[%emt 0:00:37]} 52. Bd5 {[%emt 0:00:32]} Rb1 {[%emt 0:01:17]} 53. Re5 {[%emt 0:01:31]} Kd6 {[%emt 0:00:40]} 54. Be4 {[%emt 0:00:56]} h5 55. Bxb1 {[%emt 0:00:17]} Nf3+ {[%emt 0:02:11]} 56. Ke3 {[%emt 0:00:18]} Nxe5 {[%emt 0:00:05]} 57. fxe5+ {[%emt 0:00:07]} Kxe5 {[%emt 0:00:01]} 58. h4 {[%emt 0:00:20]} 1-0